Workbook

Sheet GX010874_HERO9 Black-GPS5
A1: cts | B1: DateTimeConverted | C1: SecFromStart | D1: GPS (Lat.) [deg] | E1: GPS (Long.) [deg] | F1: GPSAltFT | G1: GPS (Alt.) [m] | H1: GPS (2D speed) [m/s] | I1: GPS (3D speed) [m/s] | J1: fix | K1: precision | L1: altitude system | M1: date | N1: SecondsConverted
A2: 14685 | B2: =DATE(LEFT(M2,4),MID(M2,6,2),MID(M2,9,2))+(TIME(MID(M2,12,2),MID(M2,15,2),0)-(8/24))+N2 -> 2023-07-30T18:45:24.125 | C2: =(((B2*60)*60)*60)-((($B$2*60)*60)*60) -> 0 | D2: 60.1320749 | E2: -149.4191156 | F2: =G2*3.281 -> 71.732503 | G2: 21.863 | H2: 26.523 | I2: 26.47 | J2: 3 | K2: 333 | L2: MSLV | M2: 2023-07-31T02:45:24.125Z | N2: =ROUND(((((VALUE(MID(M2,18,6))/60)/60)/24)),10) -> 0.0002792245
A3: 14740 | B3: =DATE(LEFT(M3,4),MID(M3,6,2),MID(M3,9,2))+(TIME(MID(M3,12,2),MID(M3,15,2),0)-(8/24))+N3 -> 2023-07-30T18:45:24.180 | C3: =(((B3*24)*60)*60)-((($B$2*24)*60)*60) -> 0.05500364304 | D3: 60.1320653 | E3: -149.4190975 | F3: =G3*3.281 -> 71.870305 | G3: 21.905 | H3: 26.57 | I3: 26.54 | J3: 3 | K3: 333 | L3: MSLV | M3: 2023-07-31T02:45:24.180Z | N3: =(((MID(M3,18,6)/60)/60)/24) -> 0.0002798611111
A4: 14795 | B4: 2023-07-30T18:45:24.235 | C4: =(((B4*24)*60)*60)-((($B$2*24)*60)*60) -> 0.1100029945 | D4: 60.1320559 | E4: -149.4190797 | F4: 72.145909 | G4: 21.989 | H4: 26.615 | I4: 26.58 | J4: 3 | K4: 333 | L4: MSLV | M4: 2023-07-31T02:45:24.235Z | N4: 0.0002804976852
A5: 14850 | B5: 2023-07-30T18:45:24.290 | C5: 0.1650028229 | D5: 60.1320463 | E5: -149.419062 | F5: 72.447761 | G5: 22.081 | H5: 26.695 | I5: 26.63 | J5: 3 | K5: 333 | L5: MSLV | M5: 2023-07-31T02:45:24.290Z | N5: 0.0002811342593
A6: 14905 | B6: 2023-07-30T18:45:24.345 | C6: 0.2200026512 | D6: 60.1320363 | E6: -149.4190436 | F6: 72.24762 | G6: 22.02 | H6: 26.693 | I6: 26.71 | J6: 3 | K6: 333 | L6: MSLV | M6: 2023-07-31T02:45:24.345Z | N6: 0.0002817708333
A7: 14960 | B7: 2023-07-30T18:45:24.400 | C7: 0.2750034332 | D7: 60.1320264 | E7: -149.4190254 | F7: 72.277149 | G7: 22.029 | H7: 26.793 | I7: 26.71 | J7: 3 | K7: 333 | L7: MSLV | M7: 2023-07-31T02:45:24.400Z | N7: 0.0002824074074
A8: 15015 | B8: 2023-07-30T18:45:24.455 | C8: 0.3300037384 | D8: 60.1320167 | E8: -149.4190067 | F8: 72.267306 | G8: 22.026 | H8: 26.852 | I8: 26.81 | J8: 3 | K8: 333 | L8: MSLV | M8: 2023-07-31T02:45:24.455Z | N8: 0.0002830439815
A9: 15070 | B9: 2023-07-30T18:45:24.510 | C9: 0.3850035667 | D9: 60.132007 | E9: -149.4189891 | F9: 72.519943 | G9: 22.103 | H9: 26.854 | I9: 26.86 | J9: 3 | K9: 333 | L9: MSLV | M9: 2023-07-31T02:45:24.510Z | N9: 0.0002836805556
A10: 15125 | B10: 2023-07-30T18:45:24.565 | C10: 0.4400038719 | D10: 60.131997 | E10: -149.4189714 | F10: 72.693836 | G10: 22.156 | H10: 26.958 | I10: 26.87 | J10: 3 | K10: 333 | L10: MSLV | M10: 2023-07-31T02:45:24.565Z | N10: 0.0002843171296
A11: 15180 | B11: 2023-07-30T18:45:24.620 | C11: 0.4950032234 | D11: 60.1319871 | E11: -149.4189536 | F11: 72.766018 | G11: 22.178 | H11: 27.008 | I11: 26.97 | J11: 3 | K11: 333 | L11: MSLV | M11: 2023-07-31T02:45:24.620Z | N11: 0.0002849537037
A12: 15235 | B12: 2023-07-30T18:45:24.675 | C12: 0.5500035286 | D12: 60.1319772 | E12: -149.4189348 | F12: 72.775861 | G12: 22.181 | H12: 27.069 | I12: 27.02 | J12: 3 | K12: 333 | L12: MSLV | M12: 2023-07-31T02:45:24.675Z | N12: 0.0002855902778
A13: 15290 | B13: 2023-07-30T18:45:24.730 | C13: 0.6050028801 | D13: 60.1319672 | E13: -149.4189165 | F13: 72.726646 | G13: 22.166 | H13: 27.079 | I13: 27.08 | J13: 3 | K13: 333 | L13: MSLV | M13: 2023-07-31T02:45:24.730Z | N13: 0.0002862268519
A14: 15345 | B14: 2023-07-30T18:45:24.785 | C14: 0.6600036621 | D14: 60.131957 | E14: -149.4188986 | F14: 72.815233 | G14: 22.193 | H14: 27.194 | I14: 27.09 | J14: 3 | K14: 333 | L14: MSLV | M14: 2023-07-31T02:45:24.785Z | N14: 0.0002868634259
A15: 15400 | B15: 2023-07-30T18:45:24.840 | C15: 0.7150030136 | D15: 60.1319469 | E15: -149.4188806 | F15: 72.923506 | G15: 22.226 | H15: 27.21 | I15: 27.21 | J15: 3 | K15: 333 | L15: MSLV | M15: 2023-07-31T02:45:24.840Z | N15: 0.0002875
A16: 15455 | B16: 2023-07-30T18:45:24.895 | C16: 0.7700033188 | D16: 60.1319367 | E16: -149.4188618 | F16: 72.857886 | G16: 22.206 | H16: 27.321 | I16: 27.22 | J16: 3 | K16: 333 | L16: MSLV | M16: 2023-07-31T02:45:24.895Z | N16: 0.0002881365741
A17: 15510 | B17: 2023-07-30T18:45:24.950 | C17: 0.8250026703 | D17: 60.1319267 | E17: -149.418844 | F17: 72.966159 | G17: 22.239 | H17: 27.276 | I17: 27.33 | J17: 3 | K17: 333 | L17: MSLV | M17: 2023-07-31T02:45:24.950Z | N17: 0.0002887731481
A18: 15565 | B18: 2023-07-30T18:45:25.005 | C18: =(((B18*24)*60)*60)-((($B$2*24)*60)*60) -> 0.8800034523 | D18: 60.1319164 | E18: -149.4188261 | F18: 73.00225 | G18: 22.25 | H18: 27.354 | I18: 27.29 | J18: 3 | K18: 333 | L18: MSLV | M18: 2023-07-31T02:45:25.005Z | N18: 0.0002894097222
A19: 15620 | B19: 2023-07-30T18:45:25.060 | C19: 0.9350028038 | D19: 60.1319063 | E19: -149.4188073 | F19: 72.949754 | G19: 22.234 | H19: 27.357 | I19: 27.37 | J19: 3 | K19: 333 | L19: MSLV | M19: 2023-07-31T02:45:25.060Z | N19: 0.0002900462963
A20: 15675 | B20: 2023-07-30T18:45:25.115 | C20: 0.990003109 | D20: 60.1318959 | E20: -149.4187897 | F20: 73.195829 | G20: 22.309 | H20: 27.545 | I20: 27.37 | J20: 3 | K20: 333 | L20: MSLV | M20: 2023-07-31T02:45:25.115Z | N20: 0.0002906828704
A21: 15727.10526 | B21: 2023-07-30T18:45:25.167 | C21: 1.042002678 | D21: 60.1318857 | E21: -149.4187722 | F21: 73.386127 | G21: 22.367 | H21: 27.565 | I21: 27.56 | J21: 3 | K21: 333 | L21: MSLV | M21: 2023-07-31T02:45:25.167Z | N21: 0.0002912847222
A22: 15779.21053 | B22: 2023-07-30T18:45:25.219 | C22: 1.094003201 | D22: 60.1318753 | E22: -149.418754 | F22: 73.373003 | G22: 22.363 | H22: 27.603 | I22: 27.58 | J22: 3 | K22: 333 | L22: MSLV | M22: 2023-07-31T02:45:25.219Z | N22: 0.0002918865741
A23: 15831.31579 | B23: 2023-07-30T18:45:25.271 | C23: 1.146002769 | D23: 60.1318651 | E23: -149.4187365 | F23: 73.638764 | G23: 22.444 | H23: 27.663 | I23: 27.61 | J23: 3 | K23: 333 | L23: MSLV | M23: 2023-07-31T02:45:25.271Z | N23: 0.0002924884259
A24: 15883.42105 | B24: 2023-07-30T18:45:25.323 | C24: 1.198003292 | D24: 60.1318547 | E24: -149.4187184 | F24: 73.75688 | G24: 22.48 | H24: 27.724 | I24: 27.67 | J24: 3 | K24: 333 | L24: MSLV | M24: 2023-07-31T02:45:25.323Z | N24: 0.0002930902778
A25: 15935.52632 | B25: 2023-07-30T18:45:25.375 | C25: 1.250003338 | D25: 60.1318442 | E25: -149.4187003 | F25: 73.799533 | G25: 22.493 | H25: 27.799 | I25: 27.73 | J25: 3 | K25: 333 | L25: MSLV | M25: 2023-07-31T02:45:25.375Z | N25: 0.0002936921296
A26: 15987.63158 | B26: 2023-07-30T18:45:25.427 | C26: 1.30200386 | D26: 60.1318338 | E26: -149.4186825 | F26: 74.032484 | G26: 22.564 | H26: 27.873 | I26: 27.81 | J26: 3 | K26: 333 | L26: MSLV | M26: 2023-07-31T02:45:25.427Z | N26: 0.0002942939815
A27: 16039.73684 | B27: 2023-07-30T18:45:25.479 | C27: 1.354003429 | D27: 60.1318232 | E27: -149.4186644 | F27: 74.032484 | G27: 22.564 | H27: 27.929 | I27: 27.88 | J27: 3 | K27: 333 | L27: MSLV | M27: 2023-07-31T02:45:25.479Z | N27: 0.0002948958333
A28: 16091.84211 | B28: 2023-07-30T18:45:25.531 | C28: 1.406003475 | D28: 60.1318128 | E28: -149.4186469 | F28: 74.331055 | G28: 22.655 | H28: 27.969 | I28: 27.94 | J28: 3 | K28: 333 | L28: MSLV | M28: 2023-07-31T02:45:25.531Z | N28: 0.0002954976852
A29: 16143.94737 | B29: 2023-07-30T18:45:25.583 | C29: 1.458003044 | D29: 60.131802 | E29: -149.418629 | F29: 74.370427 | G29: 22.667 | H29: 28.052 | I29: 27.98 | J29: 3 | K29: 333 | L29: MSLV | M29: 2023-07-31T02:45:25.583Z | N29: 0.000296099537
A30: 16196.05263 | B30: 2023-07-30T18:45:25.636 | C30: 1.511003017 | D30: 60.1317905 | E30: -149.4186079 | F30: 73.487838 | G30: 22.398 | H30: 28.192 | I30: 28.06 | J30: 3 | K30: 333 | L30: MSLV | M30: 2023-07-31T02:45:25.636Z | N30: 0.000296712963
A31: 16248.15789 | B31: 2023-07-30T18:45:25.688 | C31: 1.56300354 | D31: 60.1317794 | E31: -149.4185872 | F31: 72.887415 | G31: 22.215 | H31: 28.254 | I31: 28.2 | J31: 3 | K31: 333 | L31: MSLV | M31: 2023-07-31T02:45:25.688Z | N31: 0.0002973148148
A32: 16300.26316 | B32: 2023-07-30T18:45:25.740 | C32: 1.615003109 | D32: 60.1317686 | E32: -149.4185685 | F32: 72.93663 | G32: 22.23 | H32: 28.324 | I32: 28.26 | J32: 3 | K32: 333 | L32: MSLV | M32: 2023-07-31T02:45:25.740Z | N32: 0.0002979166667
A33: 16352.36842 | B33: 2023-07-30T18:45:25.792 | C33: 1.667003632 | D33: 60.1317575 | E33: -149.4185494 | F33: 72.683993 | G33: 22.153 | H33: 28.393 | I33: 28.33 | J33: 3 | K33: 333 | L33: MSLV | M33: 2023-07-31T02:45:25.792Z | N33: 0.0002985185185
A34: 16404.47368 | B34: 2023-07-30T18:45:25.844 | C34: 1.719003201 | D34: 60.1317466 | E34: -149.4185303 | F34: 72.562596 | G34: 22.116 | H34: 28.483 | I34: 28.4 | J34: 3 | K34: 333 | L34: MSLV | M34: 2023-07-31T02:45:25.844Z | N34: 0.0002991203704
A35: 16456.57895 | B35: 2023-07-30T18:45:25.896 | C35: 1.771003723 | D35: 60.1317357 | E35: -149.4185119 | F35: 72.700398 | G35: 22.158 | H35: 28.534 | I35: 28.49 | J35: 3 | K35: 333 | L35: MSLV | M35: 2023-07-31T02:45:25.896Z | N35: 0.0002997222222
A36: 16508.68421 | B36: 2023-07-30T18:45:25.948 | C36: 1.823003769 | D36: 60.1317247 | E36: -149.4184927 | F36: 72.493695 | G36: 22.095 | H36: 28.529 | I36: 28.55 | J36: 3 | K36: 333 | L36: MSLV | M36: 2023-07-31T02:45:25.948Z | N36: 0.0003003240741
A37: 16560.78947 | B37: 2023-07-30T18:45:26 | C37: 1.875003338 | D37: 60.1317137 | E37: -149.4184736 | F37: 72.329645 | G37: 22.045 | H37: 28.607 | I37: 28.54 | J37: 3 | K37: 333 | L37: MSLV | M37: 2023-07-31T02:45:26.000Z | N37: 0.0003009259259
A38: 16612.89474 | B38: 2023-07-30T18:45:26.052 | C38: 1.92700243 | D38: 60.1317029 | E38: -149.4184554 | F38: 72.634778 | G38: 22.138 | H38: 28.668 | I38: 28.62 | J38: 3 | K38: 333 | L38: MSLV | M38: 2023-07-31T02:45:26.052Z | N38: 0.0003015277778
A39: 16665 | B39: 2023-07-30T18:45:26.105 | C39: 1.98000288 | D39: 60.1316921 | E39: -149.418437 | F39: 72.8382 | G39: 22.2 | H39: 28.695 | I39: 28.68 | J39: 3 | K39: 333 | L39: MSLV | M39: 2023-07-31T02:45:26.105Z | N39: 0.0003021412037
A40: 16720 | B40: 2023-07-30T18:45:26.160 | C40: 2.035003662 | D40: 60.131681 | E40: -149.4184183 | F40: 72.828357 | G40: 22.197 | H40: 28.744 | I40: 28.71 | J40: 3 | K40: 333 | L40: MSLV | M40: 2023-07-31T02:45:26.160Z | N40: 0.0003027777778
A41: 16775 | B41: 2023-07-30T18:45:26.215 | C41: 2.090003014 | D41: 60.13167 | E41: -149.4183995 | F41: 72.857886 | G41: 22.206 | H41: 28.79 | I41: 28.76 | J41: 3 | K41: 333 | L41: MSLV | M41: 2023-07-31T02:45:26.215Z | N41: 0.0003034143519
A42: 16830 | B42: 2023-07-30T18:45:26.270 | C42: 2.145003796 | D42: 60.1316592 | E42: -149.4183811 | F42: 73.113804 | G42: 22.284 | H42: 28.877 | I42: 28.8 | J42: 3 | K42: 333 | L42: MSLV | M42: 2023-07-31T02:45:26.270Z | N42: 0.0003040509259
A43: 16885 | B43: 2023-07-30T18:45:26.325 | C43: 2.200003147 | D43: 60.1316483 | E43: -149.4183625 | F43: 73.333631 | G43: 22.351 | H43: 28.944 | I43: 28.89 | J43: 3 | K43: 333 | L43: MSLV | M43: 2023-07-31T02:45:26.325Z | N43: 0.0003046875
A44: 16940 | B44: 2023-07-30T18:45:26.380 | C44: 2.255003452 | D44: 60.1316373 | E44: -149.4183436 | F44: 73.281135 | G44: 22.335 | H44: 28.89 | I44: 28.96 | J44: 3 | K44: 333 | L44: MSLV | M44: 2023-07-31T02:45:26.380Z | N44: 0.0003053240741
A45: 16995 | B45: 2023-07-30T18:45:26.435 | C45: 2.310002804 | D45: 60.1316263 | E45: -149.4183252 | F45: 73.507524 | G45: 22.404 | H45: 28.978 | I45: 28.9 | J45: 3 | K45: 333 | L45: MSLV | M45: 2023-07-31T02:45:26.435Z | N45: 0.0003059606481
A46: 17050 | B46: 2023-07-30T18:45:26.490 | C46: 2.365003586 | D46: 60.1316153 | E46: -149.4183068 | F46: 73.740475 | G46: 22.475 | H46: 29.014 | I46: 28.99 | J46: 3 | K46: 333 | L46: MSLV | M46: 2023-07-31T02:45:26.490Z | N46: 0.0003065972222
A47: 17105 | B47: 2023-07-30T18:45:26.545 | C47: 2.420002937 | D47: 60.1316044 | E47: -149.4182881 | F47: 73.993112 | G47: 22.552 | H47: 29.078 | I47: 29.03 | J47: 3 | K47: 333 | L47: MSLV | M47: 2023-07-31T02:45:26.545Z | N47: 0.0003072337963
A48: 17160 | B48: 2023-07-30T18:45:26.600 | C48: 2.475002766 | D48: 60.1315933 | E48: -149.4182691 | F48: 74.029203 | G48: 22.563 | H48: 29.088 | I48: 29.09 | J48: 3 | K48: 333 | L48: MSLV | M48: 2023-07-31T02:45:26.600Z | N48: 0.0003078703704
A49: 17215 | B49: 2023-07-30T18:45:26.655 | C49: 2.530003548 | D49: 60.1315825 | E49: -149.4182502 | F49: 74.24903 | G49: 22.63 | H49: 29.089 | I49: 29.1 | J49: 3 | K49: 333 | L49: MSLV | M49: 2023-07-31T02:45:26.655Z | N49: 0.0003085069444
A50: 17270 | B50: 2023-07-30T18:45:26.710 | C50: 2.585003853 | D50: 60.1315713 | E50: -149.4182314 | F50: 74.268716 | G50: 22.636 | H50: 29.138 | I50: 29.1 | J50: 3 | K50: 333 | L50: MSLV | M50: 2023-07-31T02:45:26.710Z | N50: 0.0003091435185
A51: 17325 | B51: 2023-07-30T18:45:26.765 | C51: 2.640003681 | D51: 60.1315603 | E51: -149.4182129 | F51: 74.652593 | G51: 22.753 | H51: 29.217 | I51: 29.15 | J51: 3 | K51: 333 | L51: MSLV | M51: 2023-07-31T02:45:26.765Z | N51: 0.0003097800926
A52: 17380 | B52: 2023-07-30T18:45:26.820 | C52: 2.695003033 | D52: 60.1315491 | E52: -149.4181943 | F52: 74.836329 | G52: 22.809 | H52: 29.284 | I52: 29.23 | J52: 3 | K52: 333 | L52: MSLV | M52: 2023-07-31T02:45:26.820Z | N52: 0.0003104166667
A53: 17435 | B53: 2023-07-30T18:45:26.875 | C53: 2.750003815 | D53: 60.1315381 | E53: -149.4181759 | F53: 75.230049 | G53: 22.929 | H53: 29.342 | I53: 29.3 | J53: 3 | K53: 333 | L53: MSLV | M53: 2023-07-31T02:45:26.875Z | N53: 0.0003110532407
A54: 17490 | B54: 2023-07-30T18:45:26.930 | C54: 2.805003643 | D54: 60.1315268 | E54: -149.4181571 | F54: 75.193958 | G54: 22.918 | H54: 29.347 | I54: 29.36 | J54: 3 | K54: 333 | L54: MSLV | M54: 2023-07-31T02:45:26.930Z | N54: 0.0003116898148
A55: 17545 | B55: 2023-07-30T18:45:26.985 | C55: 2.860003471 | D55: 60.1315157 | E55: -149.4181384 | F55: 75.377694 | G55: 22.974 | H55: 29.367 | I55: 29.36 | J55: 3 | K55: 333 | L55: MSLV | M55: 2023-07-31T02:45:26.985Z | N55: 0.0003123263889
A56: 17600 | B56: 2023-07-30T18:45:27.040 | C56: 2.915002823 | D56: 60.1315045 | E56: -149.4181198 | F56: 75.551587 | G56: 23.027 | H56: 29.396 | I56: 29.39 | J56: 3 | K56: 333 | L56: MSLV | M56: 2023-07-31T02:45:27.040Z | N56: 0.000312962963
A57: 17655 | B57: 2023-07-30T18:45:27.095 | C57: 2.970003128 | D57: 60.1314934 | E57: -149.4181012 | F57: 75.728761 | G57: 23.081 | H57: 29.399 | I57: 29.41 | J57: 3 | K57: 333 | L57: MSLV | M57: 2023-07-31T02:45:27.095Z | N57: 0.000313599537
A58: 17710 | B58: 2023-07-30T18:45:27.150 | C58: 3.025003433 | D58: 60.1314822 | E58: -149.4180826 | F58: 76.15201 | G58: 23.21 | H58: 29.514 | I58: 29.42 | J58: 3 | K58: 333 | L58: MSLV | M58: 2023-07-31T02:45:27.150Z | N58: 0.0003142361111
A59: 17765 | B59: 2023-07-30T18:45:27.205 | C59: 3.080002785 | D59: 60.131471 | E59: -149.4180641 | F59: 76.352151 | G59: 23.271 | H59: 29.497 | I59: 29.54 | J59: 3 | K59: 333 | L59: MSLV | M59: 2023-07-31T02:45:27.205Z | N59: 0.0003148726852
A60: 17820 | B60: 2023-07-30T18:45:27.260 | C60: 3.135002613 | D60: 60.1314596 | E60: -149.4180455 | F60: 76.417771 | G60: 23.291 | H60: 29.546 | I60: 29.52 | J60: 3 | K60: 333 | L60: MSLV | M60: 2023-07-31T02:45:27.260Z | N60: 0.0003155092593
A61: 17875 | B61: 2023-07-30T18:45:27.315 | C61: 3.190002918 | D61: 60.1314484 | E61: -149.4180267 | F61: 76.683532 | G61: 23.372 | H61: 29.614 | I61: 29.57 | J61: 3 | K61: 333 | L61: MSLV | M61: 2023-07-31T02:45:27.315Z | N61: 0.0003161458333
A62: 17930 | B62: 2023-07-30T18:45:27.370 | C62: 3.2450037 | D62: 60.1314372 | E62: -149.4180082 | F62: 77.051004 | G62: 23.484 | H62: 29.629 | I62: 29.64 | J62: 3 | K62: 333 | L62: MSLV | M62: 2023-07-31T02:45:27.370Z | N62: 0.0003167824074
A63: 17985 | B63: 2023-07-30T18:45:27.425 | C63: 3.300004005 | D63: 60.1314259 | E63: -149.4179895 | F63: 77.238021 | G63: 23.541 | H63: 29.647 | I63: 29.65 | J63: 3 | K63: 333 | L63: MSLV | M63: 2023-07-31T02:45:27.425Z | N63: 0.0003174189815
A64: 18040 | B64: 2023-07-30T18:45:27.480 | C64: 3.355003357 | D64: 60.1314144 | E64: -149.417971 | F64: 77.490658 | G64: 23.618 | H64: 29.728 | I64: 29.67 | J64: 3 | K64: 333 | L64: MSLV | M64: 2023-07-31T02:45:27.480Z | N64: 0.0003180555556
A65: 18095 | B65: 2023-07-30T18:45:27.535 | C65: 3.410003662 | D65: 60.1314031 | E65: -149.4179526 | F65: 77.799072 | G65: 23.712 | H65: 29.697 | I65: 29.75 | J65: 3 | K65: 333 | L65: MSLV | M65: 2023-07-31T02:45:27.535Z | N65: 0.0003186921296
A66: 18150 | B66: 2023-07-30T18:45:27.590 | C66: 3.465003014 | D66: 60.1313919 | E66: -149.4179339 | F66: 78.146858 | G66: 23.818 | H66: 29.731 | I66: 29.72 | J66: 3 | K66: 333 | L66: MSLV | M66: 2023-07-31T02:45:27.590Z | N66: 0.0003193287037
A67: 18205 | B67: =DATE(LEFT(M67,4),MID(M67,6,2),MID(M67,9,2))+(TIME(MID(M67,12,2),MID(M67,15,2),0)-(8/24))+N67 -> 2023-07-30T18:45:27.645 | C67: 3.520003796 | D67: 60.1313805 | E67: -149.4179153 | F67: =G67*3.281 -> 78.314189 | G67: 23.869 | H67: 29.734 | I67: 29.76 | J67: 3 | K67: 333 | L67: MSLV | M67: 2023-07-31T02:45:27.645Z | N67: =(((MID(M67,18,6)/60)/60)/24) -> 0.0003199652778
A68: 18260 | B68: 2023-07-30T18:45:27.700 | C68: =(((B68*24)*60)*60)-((($B$2*24)*60)*60) -> 3.575003147 | D68: 60.1313691 | E68: -149.4178967 | F68: 78.724314 | G68: 23.994 | H68: 29.821 | I68: 29.76 | J68: 3 | K68: 333 | L68: MSLV | M68: 2023-07-31T02:45:27.700Z | N68: 0.0003206018519
A69: 18315 | B69: 2023-07-30T18:45:27.755 | C69: 3.630003452 | D69: 60.1313576 | E69: -149.4178782 | F69: 78.944141 | G69: 24.061 | H69: 29.863 | I69: 29.85 | J69: 3 | K69: 333 | L69: MSLV | M69: 2023-07-31T02:45:27.755Z | N69: 0.0003212384259
A70: 18370 | B70: 2023-07-30T18:45:27.810 | C70: 3.685002804 | D70: 60.1313462 | E70: -149.4178596 | F70: 79.232869 | G70: 24.149 | H70: 29.865 | I70: 29.89 | J70: 3 | K70: 333 | L70: MSLV | M70: 2023-07-31T02:45:27.810Z | N70: 0.000321875
A71: 18425 | B71: 2023-07-30T18:45:27.865 | C71: 3.740003586 | D71: 60.1313348 | E71: -149.417841 | F71: 79.482225 | G71: 24.225 | H71: 29.867 | I71: 29.89 | J71: 3 | K71: 333 | L71: MSLV | M71: 2023-07-31T02:45:27.865Z | N71: 0.0003225115741
A72: 18480 | B72: 2023-07-30T18:45:27.920 | C72: 3.795002937 | D72: 60.1313233 | E72: -149.4178223 | F72: 79.764391 | G72: 24.311 | H72: 29.911 | I72: 29.9 | J72: 3 | K72: 333 | L72: MSLV | M72: 2023-07-31T02:45:27.920Z | N72: 0.0003231481481
A73: 18535 | B73: 2023-07-30T18:45:27.975 | C73: 3.850003719 | D73: 60.1313119 | E73: -149.4178036 | F73: 79.974375 | G73: 24.375 | H73: 29.909 | I73: 29.94 | J73: 3 | K73: 333 | L73: MSLV | M73: 2023-07-31T02:45:27.975Z | N73: 0.0003237847222
A74: 18590 | B74: 2023-07-30T18:45:28.030 | C74: 3.905003071 | D74: 60.1313006 | E74: -149.4177849 | F74: 80.354971 | G74: 24.491 | H74: 29.968 | I74: 29.94 | J74: 3 | K74: 333 | L74: MSLV | M74: 2023-07-31T02:45:28.030Z | N74: 0.0003244212963
A75: 18645 | B75: 2023-07-30T18:45:28.085 | C75: 3.960002899 | D75: 60.1312889 | E75: -149.4177664 | F75: 80.601046 | G75: 24.566 | H75: 30.019 | I75: 30 | J75: 3 | K75: 333 | L75: MSLV | M75: 2023-07-31T02:45:28.085Z | N75: 0.0003250578704
A76: 18703.05556 | B76: 2023-07-30T18:45:28.143 | C76: 4.018003464 | D76: 60.1312774 | E76: -149.4177478 | F76: 80.814311 | G76: 24.631 | H76: 30.009 | I76: 30.05 | J76: 3 | K76: 333 | L76: MSLV | M76: 2023-07-31T02:45:28.143Z | N76: 0.0003257291667
A77: 18761.11111 | B77: 2023-07-30T18:45:28.201 | C77: 4.076003551 | D77: 60.1312659 | E77: -149.4177289 | F77: 81.043981 | G77: 24.701 | H77: 30.078 | I77: 30.04 | J77: 3 | K77: 333 | L77: MSLV | M77: 2023-07-31T02:45:28.201Z | N77: 0.000326400463
A78: 18819.16667 | B78: 2023-07-30T18:45:28.259 | C78: 4.134003162 | D78: 60.1312545 | E78: -149.4177102 | F78: 81.358957 | G78: 24.797 | H78: 30.09 | I78: 30.11 | J78: 3 | K78: 333 | L78: MSLV | M78: 2023-07-31T02:45:28.259Z | N78: 0.0003270717593
A79: 18877.22222 | B79: 2023-07-30T18:45:28.317 | C79: 4.19200325 | D79: 60.1312429 | E79: -149.4176914 | F79: 81.50004 | G79: 24.84 | H79: 30.074 | I79: 30.12 | J79: 3 | K79: 333 | L79: MSLV | M79: 2023-07-31T02:45:28.317Z | N79: 0.0003277430556
A80: 18935.27778 | B80: 2023-07-30T18:45:28.375 | C80: 4.250003338 | D80: 60.1312314 | E80: -149.4176728 | F80: 81.782206 | G80: 24.926 | H80: 30.094 | I80: 30.11 | J80: 3 | K80: 333 | L80: MSLV | M80: 2023-07-31T02:45:28.375Z | N80: 0.0003284143519
A81: 18993.33333 | B81: 2023-07-30T18:45:28.433 | C81: 4.308002949 | D81: 60.1312198 | E81: -149.417654 | F81: 81.988909 | G81: 24.989 | H81: 30.133 | I81: 30.13 | J81: 3 | K81: 333 | L81: MSLV | M81: 2023-07-31T02:45:28.433Z | N81: 0.0003290856481
A82: 19051.38889 | B82: 2023-07-30T18:45:28.491 | C82: 4.366003513 | D82: 60.1312082 | E82: -149.4176353 | F82: 82.238265 | G82: 25.065 | H82: 30.153 | I82: 30.17 | J82: 3 | K82: 333 | L82: MSLV | M82: 2023-07-31T02:45:28.491Z | N82: 0.0003297569444
A83: 19109.44444 | B83: 2023-07-30T18:45:28.549 | C83: 4.424003124 | D83: 60.1311965 | E83: -149.4176165 | F83: 82.346538 | G83: 25.098 | H83: 30.18 | I83: 30.19 | J83: 3 | K83: 333 | L83: MSLV | M83: 2023-07-31T02:45:28.549Z | N83: 0.0003304282407
A84: 19167.5 | B84: 2023-07-30T18:45:28.607 | C84: 4.482003212 | D84: 60.1311849 | E84: -149.4175977 | F84: 82.566365 | G84: 25.165 | H84: 30.214 | I84: 30.21 | J84: 3 | K84: 333 | L84: MSLV | M84: 2023-07-31T02:45:28.607Z | N84: 0.000331099537
A85: 19225.55556 | B85: 2023-07-30T18:45:28.665 | C85: 4.5400033 | D85: 60.1311733 | E85: -149.4175791 | F85: 82.927275 | G85: 25.275 | H85: 30.225 | I85: 30.25 | J85: 3 | K85: 333 | L85: MSLV | M85: 2023-07-31T02:45:28.665Z | N85: 0.0003317708333
A86: 19283.61111 | B86: 2023-07-30T18:45:28.723 | C86: 4.598003864 | D86: 60.1311616 | E86: -149.4175602 | F86: 83.17335 | G86: 25.35 | H86: 30.308 | I86: 30.26 | J86: 3 | K86: 333 | L86: MSLV | M86: 2023-07-31T02:45:28.723Z | N86: 0.0003324421296
A87: 19341.66667 | B87: 2023-07-30T18:45:28.781 | C87: 4.656003475 | D87: 60.1311497 | E87: -149.4175416 | F87: 83.3374 | G87: 25.4 | H87: 30.348 | I87: 30.34 | J87: 3 | K87: 333 | L87: MSLV | M87: 2023-07-31T02:45:28.781Z | N87: 0.0003331134259
A88: 19399.72222 | B88: 2023-07-30T18:45:28.839 | C88: 4.714003563 | D88: 60.131138 | E88: -149.4175227 | F88: 83.547384 | G88: 25.464 | H88: 30.374 | I88: 30.38 | J88: 3 | K88: 333 | L88: MSLV | M88: 2023-07-31T02:45:28.839Z | N88: 0.0003337847222
A89: 19457.77778 | B89: 2023-07-30T18:45:28.897 | C89: 4.772003651 | D89: 60.1311264 | E89: -149.4175039 | F89: 83.908294 | G89: 25.574 | H89: 30.397 | I89: 30.41 | J89: 3 | K89: 333 | L89: MSLV | M89: 2023-07-31T02:45:28.897Z | N89: 0.0003344560185
A90: 19515.83333 | B90: 2023-07-30T18:45:28.955 | C90: 4.830003262 | D90: 60.1311146 | E90: -149.4174852 | F90: 84.151088 | G90: 25.648 | H90: 30.406 | I90: 30.43 | J90: 3 | K90: 333 | L90: MSLV | M90: 2023-07-31T02:45:28.955Z | N90: 0.0003351273148
A91: 19573.88889 | B91: 2023-07-30T18:45:29.013 | C91: 4.888003826 | D91: 60.1311028 | E91: -149.4174665 | F91: 84.515279 | G91: 25.759 | H91: 30.522 | I91: 30.44 | J91: 3 | K91: 333 | L91: MSLV | M91: 2023-07-31T02:45:29.013Z | N91: 0.0003357986111
A92: 19631.94444 | B92: 2023-07-30T18:45:29.071 | C92: 4.946003437 | D92: 60.131091 | E92: -149.4174478 | F92: 84.817131 | G92: 25.851 | H92: 30.516 | I92: 30.56 | J92: 3 | K92: 333 | L92: MSLV | M92: 2023-07-31T02:45:29.071Z | N92: 0.0003364699074
A93: 19690 | B93: 2023-07-30T18:45:29.130 | C93: 5.005003929 | D93: 60.1310792 | E93: -149.4174292 | F93: 85.102578 | G93: 25.938 | H93: 30.555 | I93: 30.56 | J93: 3 | K93: 333 | L93: MSLV | M93: 2023-07-31T02:45:29.130Z | N93: 0.0003371527778
A94: 19745 | B94: 2023-07-30T18:45:29.185 | C94: 5.060002804 | D94: 60.1310675 | E94: -149.4174103 | F94: 85.384744 | G94: 26.024 | H94: 30.562 | I94: 30.6 | J94: 3 | K94: 333 | L94: MSLV | M94: 2023-07-31T02:45:29.185Z | N94: 0.0003377893519
A95: 19800 | B95: 2023-07-30T18:45:29.240 | C95: 5.115003586 | D95: 60.1310556 | E95: -149.4173917 | F95: 85.739092 | G95: 26.132 | H95: 30.626 | I95: 30.6 | J95: 3 | K95: 333 | L95: MSLV | M95: 2023-07-31T02:45:29.240Z | N95: 0.0003384259259
A96: 19855 | B96: 2023-07-30T18:45:29.295 | C96: 5.170002937 | D96: 60.1310438 | E96: -149.4173728 | F96: 85.958919 | G96: 26.199 | H96: 30.639 | I96: 30.67 | J96: 3 | K96: 333 | L96: MSLV | M96: 2023-07-31T02:45:29.295Z | N96: 0.0003390625
A97: 19910 | B97: 2023-07-30T18:45:29.350 | C97: 5.225003719 | D97: 60.1310319 | E97: -149.4173541 | F97: 86.277176 | G97: 26.296 | H97: 30.662 | I97: 30.68 | J97: 3 | K97: 333 | L97: MSLV | M97: 2023-07-31T02:45:29.350Z | N97: 0.0003396990741
A98: 19965 | B98: 2023-07-30T18:45:29.405 | C98: 5.280003071 | D98: 60.1310199 | E98: -149.4173355 | F98: 86.497003 | G98: 26.363 | H98: 30.692 | I98: 30.7 | J98: 3 | K98: 333 | L98: MSLV | M98: 2023-07-31T02:45:29.405Z | N98: 0.0003403356481
A99: 20020 | B99: 2023-07-30T18:45:29.460 | C99: 5.335003376 | D99: 60.131008 | E99: -149.4173168 | F99: 86.795574 | G99: 26.454 | H99: 30.675 | I99: 30.73 | J99: 3 | K99: 333 | L99: MSLV | M99: 2023-07-31T02:45:29.460Z | N99: 0.0003409722222
A100: 20075 | B100: 2023-07-30T18:45:29.515 | C100: 5.390002728 | D100: 60.130996 | E100: -149.4172981 | F100: 87.018682 | G100: 26.522 | H100: 30.695 | I100: 30.72 | J100: 3 | K100: 333 | L100: MSLV | M100: 2023-07-31T02:45:29.515Z | N100: 0.0003416087963
A101: 20130 | B101: 2023-07-30T18:45:29.570 | C101: 5.445003033 | D101: 60.1309841 | E101: -149.4172793 | F101: 87.310691 | G101: 26.611 | H101: 30.724 | I101: 30.74 | J101: 3 | K101: 333 | L101: MSLV | M101: 2023-07-31T02:45:29.570Z | N101: 0.0003422453704
A102: 20185 | B102: 2023-07-30T18:45:29.625 | C102: 5.500003815 | D102: 60.1309721 | E102: -149.4172606 | F102: 87.592857 | G102: 26.697 | H102: 30.755 | I102: 30.77 | J102: 3 | K102: 333 | L102: MSLV | M102: 2023-07-31T02:45:29.625Z | N102: 0.0003428819444
A103: 20240 | B103: 2023-07-30T18:45:29.680 | C103: 5.55500412 | D103: 60.1309602 | E103: -149.417242 | F103: 87.914395 | G103: 26.795 | H103: 30.754 | I103: 30.8 | J103: 3 | K103: 333 | L103: MSLV | M103: 2023-07-31T02:45:29.680Z | N103: 0.0003435185185
A104: 20295 | B104: 2023-07-30T18:45:29.735 | C104: 5.610003471 | D104: 60.1309481 | E104: -149.4172232 | F104: 88.196561 | G104: 26.881 | H104: 30.827 | I104: 30.8 | J104: 3 | K104: 333 | L104: MSLV | M104: 2023-07-31T02:45:29.735Z | N104: 0.0003441550926
A105: 20350 | B105: 2023-07-30T18:45:29.790 | C105: 5.665002823 | D105: 60.1309361 | E105: -149.4172045 | F105: 88.52138 | G105: 26.98 | H105: 30.856 | I105: 30.87 | J105: 3 | K105: 333 | L105: MSLV | M105: 2023-07-31T02:45:29.790Z | N105: 0.0003447916667
A106: 20405 | B106: 2023-07-30T18:45:29.845 | C106: 5.720003605 | D106: 60.130924 | E106: -149.4171857 | F106: 88.698554 | G106: 27.034 | H106: 30.903 | I106: 30.9 | J106: 3 | K106: 333 | L106: MSLV | M106: 2023-07-31T02:45:29.845Z | N106: 0.0003454282407
A107: 20460 | B107: 2023-07-30T18:45:29.900 | C107: 5.77500391 | D107: 60.1309119 | E107: -149.417167 | F107: 88.911819 | G107: 27.099 | H107: 30.93 | I107: 30.95 | J107: 3 | K107: 333 | L107: MSLV | M107: 2023-07-31T02:45:29.900Z | N107: 0.0003460648148
A108: 20515 | B108: 2023-07-30T18:45:29.955 | C108: 5.830003262 | D108: 60.1308999 | E108: -149.4171483 | F108: 89.298977 | G108: 27.217 | H108: 30.962 | I108: 30.97 | J108: 3 | K108: 333 | L108: MSLV | M108: 2023-07-31T02:45:29.955Z | N108: 0.0003467013889
A109: 20570 | B109: 2023-07-30T18:45:30.010 | C109: 5.885002613 | D109: 60.1308878 | E109: -149.4171294 | F109: 89.531928 | G109: 27.288 | H109: 30.983 | I109: 31 | J109: 3 | K109: 333 | L109: MSLV | M109: 2023-07-31T02:45:30.010Z | N109: 0.000347337963
A110: 20625 | B110: 2023-07-30T18:45:30.065 | C110: 5.940002918 | D110: 60.1308757 | E110: -149.4171106 | F110: 89.761598 | G110: 27.358 | H110: 31.03 | I110: 31.03 | J110: 3 | K110: 333 | L110: MSLV | M110: 2023-07-31T02:45:30.065Z | N110: 0.000347974537
A111: 20680 | B111: 2023-07-30T18:45:30.120 | C111: 5.9950037 | D111: 60.1308635 | E111: -149.4170919 | F111: 90.027359 | G111: 27.439 | H111: 31.064 | I111: 31.07 | J111: 3 | K111: 257 | L111: MSLV | M111: 2023-07-31T02:45:30.120Z | N111: 0.0003486111111
A112: 20732.10526 | B112: 2023-07-30T18:45:30.172 | C112: 6.047003269 | D112: 60.1308514 | E112: -149.4170729 | F112: 90.316087 | G112: 27.527 | H112: 31.091 | I112: 31.11 | J112: 3 | K112: 257 | L112: MSLV | M112: 2023-07-31T02:45:30.172Z | N112: 0.000349212963
A113: 20784.21053 | B113: 2023-07-30T18:45:30.224 | C113: 6.099002838 | D113: 60.1308392 | E113: -149.4170542 | F113: 90.634344 | G113: 27.624 | H113: 31.171 | I113: 31.13 | J113: 3 | K113: 257 | L113: MSLV | M113: 2023-07-31T02:45:30.224Z | N113: 0.0003498148148
A114: 20836.31579 | B114: 2023-07-30T18:45:30.276 | C114: 6.151003361 | D114: 60.1308271 | E114: -149.4170353 | F114: 90.841047 | G114: 27.687 | H114: 31.134 | I114: 31.21 | J114: 3 | K114: 257 | L114: MSLV | M114: 2023-07-31T02:45:30.276Z | N114: 0.0003504166667
A115: 20888.42105 | B115: 2023-07-30T18:45:30.328 | C115: 6.203003883 | D115: 60.1308148 | E115: -149.4170165 | F115: 91.185552 | G115: 27.792 | H115: 31.239 | I115: 31.18 | J115: 3 | K115: 257 | L115: MSLV | M115: 2023-07-31T02:45:30.328Z | N115: 0.0003510185185
A116: 20940.52632 | B116: 2023-07-30T18:45:30.380 | C116: 6.255003452 | D116: 60.1308026 | E116: -149.4169977 | F116: 91.500528 | G116: 27.888 | H116: 31.239 | I116: 31.28 | J116: 3 | K116: 257 | L116: MSLV | M116: 2023-07-31T02:45:30.380Z | N116: 0.0003516203704
A117: 20992.63158 | B117: 2023-07-30T18:45:30.432 | C117: 6.307003021 | D117: 60.1307905 | E117: -149.4169788 | F117: 91.795818 | G117: 27.978 | H117: 31.232 | I117: 31.28 | J117: 3 | K117: 257 | L117: MSLV | M117: 2023-07-31T02:45:30.432Z | N117: 0.0003522222222
A118: 21044.73684 | B118: 2023-07-30T18:45:30.484 | C118: 6.359003544 | D118: 60.1307782 | E118: -149.41696 | F118: 92.137042 | G118: 28.082 | H118: 31.334 | I118: 31.28 | J118: 3 | K118: 257 | L118: MSLV | M118: 2023-07-31T02:45:30.484Z | N118: 0.0003528240741
A119: 21096.84211 | B119: 2023-07-30T18:45:30.536 | C119: 6.41100359 | D119: 60.1307659 | E119: -149.4169411 | F119: 92.356869 | G119: 28.149 | H119: 31.31 | I119: 31.38 | J119: 3 | K119: 257 | L119: MSLV | M119: 2023-07-31T02:45:30.536Z | N119: 0.0003534259259
A120: 21148.94737 | B120: 2023-07-30T18:45:30.588 | C120: 6.463003159 | D120: 60.1307539 | E120: -149.4169221 | F120: 92.652159 | G120: 28.239 | H120: 31.275 | I120: 31.35 | J120: 3 | K120: 257 | L120: MSLV | M120: 2023-07-31T02:45:30.588Z | N120: 0.0003540277778
A121: 21201.05263 | B121: 2023-07-30T18:45:30.641 | C121: 6.516003609 | D121: 60.1307415 | E121: -149.4169033 | F121: 92.937606 | G121: 28.326 | H121: 31.361 | I121: 31.32 | J121: 3 | K121: 257 | L121: MSLV | M121: 2023-07-31T02:45:30.641Z | N121: 0.0003546412037
A122: 21253.15789 | B122: 2023-07-30T18:45:30.693 | C122: 6.568004131 | D122: 60.1307292 | E122: -149.4168846 | F122: 93.275549 | G122: 28.429 | H122: 31.404 | I122: 31.41 | J122: 3 | K122: 257 | L122: MSLV | M122: 2023-07-31T02:45:30.693Z | N122: 0.0003552430556
A123: 21305.26316 | B123: 2023-07-30T18:45:30.745 | C123: 6.620003223 | D123: 60.1307168 | E123: -149.4168657 | F123: 93.564277 | G123: 28.517 | H123: 31.452 | I123: 31.45 | J123: 3 | K123: 257 | L123: MSLV | M123: 2023-07-31T02:45:30.745Z | N123: 0.0003558449074
A124: 21357.36842 | B124: 2023-07-30T18:45:30.797 | C124: 6.672002792 | D124: 60.1307045 | E124: -149.4168468 | F124: 93.849724 | G124: 28.604 | H124: 31.487 | I124: 31.5 | J124: 3 | K124: 257 | L124: MSLV | M124: 2023-07-31T02:45:30.797Z | N124: 0.0003564467593
A125: 21409.47368 | B125: 2023-07-30T18:45:30.849 | C125: 6.724002838 | D125: 60.1306922 | E125: -149.4168279 | F125: 94.13189 | G125: 28.69 | H125: 31.497 | I125: 31.53 | J125: 3 | K125: 257 | L125: MSLV | M125: 2023-07-31T02:45:30.849Z | N125: 0.0003570486111
A126: 21461.57895 | B126: 2023-07-30T18:45:30.901 | C126: 6.776003361 | D126: 60.13068 | E126: -149.416809 | F126: 94.55842 | G126: 28.82 | H126: 31.49 | I126: 31.54 | J126: 3 | K126: 257 | L126: MSLV | M126: 2023-07-31T02:45:30.901Z | N126: 0.000357650463
A127: 21513.68421 | B127: 2023-07-30T18:45:30.953 | C127: 6.82800293 | D127: 60.1306676 | E127: -149.4167902 | F127: 94.834024 | G127: 28.904 | H127: 31.5 | I127: 31.54 | J127: 3 | K127: 257 | L127: MSLV | M127: 2023-07-31T02:45:30.953Z | N127: 0.0003582523148
A128: 21565.78947 | B128: 2023-07-30T18:45:31.005 | C128: 6.880003452 | D128: 60.1306553 | E128: -149.4167712 | F128: 95.070256 | G128: 28.976 | H128: 31.551 | I128: 31.55 | J128: 3 | K128: 257 | L128: MSLV | M128: 2023-07-31T02:45:31.005Z | N128: 0.0003588541667
A129: 21617.89474 | B129: 2023-07-30T18:45:31.057 | C129: 6.932003021 | D129: 60.1306429 | E129: -149.4167523 | F129: 95.293364 | G129: 29.044 | H129: 31.584 | I129: 31.6 | J129: 3 | K129: 257 | L129: MSLV | M129: 2023-07-31T02:45:31.057Z | N129: 0.0003594560185
A130: 21670 | B130: 2023-07-30T18:45:31.110 | C130: 6.985003471 | D130: 60.1306306 | E130: -149.4167334 | F130: 95.667398 | G130: 29.158 | H130: 31.585 | I130: 31.63 | J130: 3 | K130: 257 | L130: MSLV | M130: 2023-07-31T02:45:31.110Z | N130: 0.0003600694444
A131: 21725 | B131: =DATE(LEFT(M131,4),MID(M131,6,2),MID(M131,9,2))+(TIME(MID(M131,12,2),MID(M131,15,2),0)-(8/24))+N131 -> 2023-07-30T18:45:31.165 | C131: 7.040003777 | D131: 60.1306181 | E131: -149.4167145 | F131: =G131*3.281 -> 96.047994 | G131: 29.274 | H131: 31.644 | I131: 31.63 | J131: 3 | K131: 257 | L131: MSLV | M131: 2023-07-31T02:45:31.165Z | N131: =(((MID(M131,18,6)/60)/60)/24) -> 0.0003607060185
A132: 21780 | B132: 2023-07-30T18:45:31.220 | C132: =(((B132*24)*60)*60)-((($B$2*24)*60)*60) -> 7.095003605 | D132: 60.1306057 | E132: -149.4166957 | F132: 96.435152 | G132: 29.392 | H132: 31.69 | I132: 31.69 | J132: 3 | K132: 257 | L132: MSLV | M132: 2023-07-31T02:45:31.220Z | N132: 0.0003613425926
A133: 21835 | B133: 2023-07-30T18:45:31.275 | C133: 7.150002956 | D133: 60.1305933 | E133: -149.4166768 | F133: 96.753409 | G133: 29.489 | H133: 31.73 | I133: 31.74 | J133: 3 | K133: 257 | L133: MSLV | M133: 2023-07-31T02:45:31.275Z | N133: 0.0003619791667
A134: 21890 | B134: 2023-07-30T18:45:31.330 | C134: 7.205003262 | D134: 60.1305809 | E134: -149.4166577 | F134: 97.048699 | G134: 29.579 | H134: 31.747 | I134: 31.78 | J134: 3 | K134: 257 | L134: MSLV | M134: 2023-07-31T02:45:31.330Z | N134: 0.0003626157407
A135: 21945 | B135: 2023-07-30T18:45:31.385 | C135: 7.260004044 | D135: 60.1305685 | E135: -149.4166388 | F135: 97.452262 | G135: 29.702 | H135: 31.772 | I135: 31.8 | J135: 3 | K135: 257 | L135: MSLV | M135: 2023-07-31T02:45:31.385Z | N135: 0.0003632523148
A136: 22000 | B136: 2023-07-30T18:45:31.440 | C136: 7.315002918 | D136: 60.130556 | E136: -149.41662 | F136: 97.842701 | G136: 29.821 | H136: 31.785 | I136: 31.82 | J136: 3 | K136: 257 | L136: MSLV | M136: 2023-07-31T02:45:31.440Z | N136: 0.0003638888889
A137: 22055 | B137: 2023-07-30T18:45:31.495 | C137: 7.370002747 | D137: 60.1305437 | E137: -149.416601 | F137: 98.259388 | G137: 29.948 | H137: 31.812 | I137: 31.84 | J137: 3 | K137: 257 | L137: MSLV | M137: 2023-07-31T02:45:31.495Z | N137: 0.000364525463
A138: 22110 | B138: 2023-07-30T18:45:31.550 | C138: 7.425003052 | D138: 60.1305312 | E138: -149.416582 | F138: 98.610455 | G138: 30.055 | H138: 31.872 | I138: 31.86 | J138: 3 | K138: 257 | L138: MSLV | M138: 2023-07-31T02:45:31.550Z | N138: 0.000365162037
A139: 22165 | B139: 2023-07-30T18:45:31.605 | C139: 7.480003834 | D139: 60.1305187 | E139: -149.4165633 | F139: 98.991051 | G139: 30.171 | H139: 31.86 | I139: 31.92 | J139: 3 | K139: 257 | L139: MSLV | M139: 2023-07-31T02:45:31.605Z | N139: 0.0003657986111
A140: 22220 | B140: 2023-07-30T18:45:31.660 | C140: 7.535003185 | D140: 60.1305063 | E140: -149.4165444 | F140: 99.483201 | G140: 30.321 | H140: 31.878 | I140: 31.91 | J140: 3 | K140: 257 | L140: MSLV | M140: 2023-07-31T02:45:31.660Z | N140: 0.0003664351852
A141: 22275 | B141: 2023-07-30T18:45:31.715 | C141: 7.590002537 | D141: 60.1304937 | E141: -149.4165258 | F141: 99.926136 | G141: 30.456 | H141: 31.923 | I141: 31.93 | J141: 3 | K141: 257 | L141: MSLV | M141: 2023-07-31T02:45:31.715Z | N141: 0.0003670717593
A142: 22330 | B142: 2023-07-30T18:45:31.770 | C142: 7.645003796 | D142: 60.1304813 | E142: -149.4165071 | F142: 100.421567 | G142: 30.607 | H142: 31.927 | I142: 31.98 | J142: 3 | K142: 257 | L142: MSLV | M142: 2023-07-31T02:45:31.770Z | N142: 0.0003677083333
A143: 22385 | B143: 2023-07-30T18:45:31.825 | C143: 7.700003147 | D143: 60.1304688 | E143: -149.4164885 | F143: 100.98918 | G143: 30.78 | H143: 31.912 | I143: 31.98 | J143: 3 | K143: 257 | L143: MSLV | M143: 2023-07-31T02:45:31.825Z | N143: 0.0003683449074
A144: 22440 | B144: 2023-07-30T18:45:31.880 | C144: 7.755003929 | D144: 60.1304564 | E144: -149.4164699 | F144: 101.523983 | G144: 30.943 | H144: 31.926 | I144: 31.97 | J144: 3 | K144: 257 | L144: MSLV | M144: 2023-07-31T02:45:31.880Z | N144: 0.0003689814815
A145: 22495 | B145: 2023-07-30T18:45:31.935 | C145: 7.810003281 | D145: 60.1304438 | E145: -149.4164511 | F145: 101.996447 | G145: 31.087 | H145: 31.993 | I145: 31.98 | J145: 3 | K145: 257 | L145: MSLV | M145: 2023-07-31T02:45:31.935Z | N145: 0.0003696180556
A146: 22550 | B146: 2023-07-30T18:45:31.990 | C146: 7.865003586 | D146: 60.1304314 | E146: -149.4164325 | F146: 102.518126 | G146: 31.246 | H146: 31.91 | I146: 32.05 | J146: 3 | K146: 257 | L146: MSLV | M146: 2023-07-31T02:45:31.990Z | N146: 0.0003702546296
A147: 22605 | B147: 2023-07-30T18:45:32.045 | C147: 7.920002937 | D147: 60.1304189 | E147: -149.4164139 | F147: 103.167764 | G147: 31.444 | H147: 32.005 | I147: 31.97 | J147: 3 | K147: 257 | L147: MSLV | M147: 2023-07-31T02:45:32.045Z | N147: 0.0003708912037
A148: 22660 | B148: 2023-07-30T18:45:32.100 | C148: 7.975003719 | D148: 60.1304063 | E148: -149.4163953 | F148: 103.725534 | G148: 31.614 | H148: 32.033 | I148: 32.06 | J148: 3 | K148: 257 | L148: MSLV | M148: 2023-07-31T02:45:32.100Z | N148: 0.0003715277778
A149: 22715 | B149: 2023-07-30T18:45:32.155 | C149: 8.030003071 | D149: 60.1303938 | E149: -149.4163769 | F149: 104.388296 | G149: 31.816 | H149: 32.039 | I149: 32.09 | J149: 3 | K149: 257 | L149: MSLV | M149: 2023-07-31T02:45:32.155Z | N149: 0.0003721643519
A150: 22770 | B150: 2023-07-30T18:45:32.210 | C150: 8.085003853 | D150: 60.1303812 | E150: -149.416358 | F150: 104.752487 | G150: 31.927 | H150: 32.061 | I150: 32.1 | J150: 3 | K150: 257 | L150: MSLV | M150: 2023-07-31T02:45:32.210Z | N150: 0.0003728009259
A151: 22825 | B151: 2023-07-30T18:45:32.265 | C151: 8.140002728 | D151: 60.1303688 | E151: -149.4163396 | F151: 105.579299 | G151: 32.179 | H151: 32.019 | I151: 32.12 | J151: 3 | K151: 257 | L151: MSLV | M151: 2023-07-31T02:45:32.265Z | N151: 0.0003734375
A152: 22880 | B152: 2023-07-30T18:45:32.320 | C152: 8.195003033 | D152: 60.1303562 | E152: -149.4163209 | F152: 106.012391 | G152: 32.311 | H152: 32.02 | I152: 32.08 | J152: 3 | K152: 257 | L152: MSLV | M152: 2023-07-31T02:45:32.320Z | N152: 0.0003740740741
A153: 22935 | B153: 2023-07-30T18:45:32.375 | C153: 8.250002861 | D153: 60.1303437 | E153: -149.4163022 | F153: 106.547194 | G153: 32.474 | H153: 32.012 | I153: 32.08 | J153: 3 | K153: 257 | L153: MSLV | M153: 2023-07-31T02:45:32.375Z | N153: 0.0003747106481
A154: 22990 | B154: 2023-07-30T18:45:32.430 | C154: 8.305003166 | D154: 60.1303313 | E154: -149.4162835 | F154: 107.101683 | G154: 32.643 | H154: 32.045 | I154: 32.08 | J154: 3 | K154: 257 | L154: MSLV | M154: 2023-07-31T02:45:32.430Z | N154: 0.0003753472222
A155: 23045 | B155: 2023-07-30T18:45:32.485 | C155: 8.360002995 | D155: 60.1303186 | E155: -149.4162646 | F155: 107.570866 | G155: 32.786 | H155: 32.145 | I155: 32.11 | J155: 3 | K155: 257 | L155: MSLV | M155: 2023-07-31T02:45:32.485Z | N155: 0.0003759837963
A156: 23100 | B156: 2023-07-30T18:45:32.540 | C156: 8.4150033 | D156: 60.1303058 | E156: -149.4162455 | F156: 107.78085 | G156: 32.85 | H156: 32.258 | I156: 32.21 | J156: 3 | K156: 257 | L156: MSLV | M156: 2023-07-31T02:45:32.540Z | N156: 0.0003766203704
A157: 23155 | B157: 2023-07-30T18:45:32.595 | C157: 8.470003605 | D157: 60.1302934 | E157: -149.4162269 | F157: 108.532199 | G157: 33.079 | H157: 32.098 | I157: 32.32 | J157: 3 | K157: 257 | L157: MSLV | M157: 2023-07-31T02:45:32.595Z | N157: 0.0003772569444
A158: 23210 | B158: 2023-07-30T18:45:32.650 | C158: 8.52500391 | D158: 60.130281 | E158: -149.4162081 | F158: 109.034192 | G158: 33.232 | H158: 32.072 | I158: 32.16 | J158: 3 | K158: 257 | L158: MSLV | M158: 2023-07-31T02:45:32.650Z | N158: 0.0003778935185
A159: 23265 | B159: 2023-07-30T18:45:32.705 | C159: 8.580003738 | D159: 60.1302685 | E159: -149.4161893 | F159: 109.729764 | G159: 33.444 | H159: 32.142 | I159: 32.14 | J159: 3 | K159: 257 | L159: MSLV | M159: 2023-07-31T02:45:32.705Z | N159: 0.0003785300926
A160: 23320 | B160: 2023-07-30T18:45:32.760 | C160: 8.63500309 | D160: 60.1302558 | E160: -149.4161704 | F160: 110.116922 | G160: 33.562 | H160: 32.193 | I160: 32.21 | J160: 3 | K160: 257 | L160: MSLV | M160: 2023-07-31T02:45:32.760Z | N160: 0.0003791666667
A161: 23375 | B161: 2023-07-30T18:45:32.815 | C161: 8.690002918 | D161: 60.1302433 | E161: -149.4161517 | F161: 110.802651 | G161: 33.771 | H161: 32.166 | I161: 32.26 | J161: 3 | K161: 257 | L161: MSLV | M161: 2023-07-31T02:45:32.815Z | N161: 0.0003798032407
A162: 23430 | B162: 2023-07-30T18:45:32.870 | C162: 8.7450037 | D162: 60.1302307 | E162: -149.4161329 | F162: 111.284958 | G162: 33.918 | H162: 32.177 | I162: 32.24 | J162: 3 | K162: 257 | L162: MSLV | M162: 2023-07-31T02:45:32.870Z | N162: 0.0003804398148
A163: 23485 | B163: 2023-07-30T18:45:32.925 | C163: 8.800003052 | D163: 60.1302182 | E163: -149.4161142 | F163: 111.954282 | G163: 34.122 | H163: 32.145 | I163: 32.25 | J163: 3 | K163: 257 | L163: MSLV | M163: 2023-07-31T02:45:32.925Z | N163: 0.0003810763889
A164: 23540 | B164: 2023-07-30T18:45:32.980 | C164: 8.85500288 | D164: 60.1302055 | E164: -149.4160953 | F164: 112.40706 | G164: 34.26 | H164: 32.234 | I164: 32.22 | J164: 3 | K164: 257 | L164: MSLV | M164: 2023-07-31T02:45:32.980Z | N164: 0.000381712963
A165: 23595 | B165: 2023-07-30T18:45:33.035 | C165: 8.910003185 | D165: 60.130193 | E165: -149.4160768 | F165: 113.135442 | G165: 34.482 | H165: 32.124 | I165: 32.3 | J165: 3 | K165: 257 | L165: MSLV | M165: 2023-07-31T02:45:33.035Z | N165: 0.000382349537
A166: 23650 | B166: 2023-07-30T18:45:33.090 | C166: 8.965003967 | D166: 60.1301804 | E166: -149.4160579 | F166: 113.624311 | G166: 34.631 | H166: 32.178 | I166: 32.2 | J166: 3 | K166: 274 | L166: MSLV | M166: 2023-07-31T02:45:33.090Z | N166: 0.0003829861111
A167: 23708.05556 | B167: 2023-07-30T18:45:33.148 | C167: 9.023004055 | D167: 60.1301679 | E167: -149.4160392 | F167: 114.237858 | G167: 34.818 | H167: 32.124 | I167: 32.25 | J167: 3 | K167: 274 | L167: MSLV | M167: 2023-07-31T02:45:33.148Z | N167: 0.0003836574074
A168: 23766.11111 | B168: 2023-07-30T18:45:33.206 | C168: 9.081003189 | D168: 60.1301553 | E168: -149.4160203 | F168: 114.766099 | G168: 34.979 | H168: 32.165 | I168: 32.2 | J168: 3 | K168: 274 | L168: MSLV | M168: 2023-07-31T02:45:33.206Z | N168: 0.0003843287037
A169: 23824.16667 | B169: 2023-07-30T18:45:33.264 | C169: 9.139003754 | D169: 60.1301428 | E169: -149.4160014 | F169: 115.225439 | G169: 35.119 | H169: 32.103 | I169: 32.24 | J169: 3 | K169: 274 | L169: MSLV | M169: 2023-07-31T02:45:33.264Z | N169: 0.000385
A170: 23882.22222 | B170: 2023-07-30T18:45:33.322 | C170: 9.197002888 | D170: 60.1301303 | E170: -149.4159826 | F170: 115.770085 | G170: 35.285 | H170: 32.089 | I170: 32.18 | J170: 3 | K170: 274 | L170: MSLV | M170: 2023-07-31T02:45:33.322Z | N170: 0.0003856712963
A171: 23940.27778 | B171: 2023-07-30T18:45:33.380 | C171: 9.255004406 | D171: 60.1301177 | E171: -149.4159635 | F171: 116.291764 | G171: 35.444 | H171: 32.162 | I171: 32.16 | J171: 3 | K171: 274 | L171: MSLV | M171: 2023-07-31T02:45:33.380Z | N171: 0.0003863425926
A172: 23998.33333 | B172: 2023-07-30T18:45:33.438 | C172: 9.31300354 | D172: 60.1301052 | E172: -149.4159447 | F172: 116.990617 | G172: 35.657 | H172: 32.182 | I172: 32.24 | J172: 3 | K172: 274 | L172: MSLV | M172: 2023-07-31T02:45:33.438Z | N172: 0.0003870138889
A173: 24056.38889 | B173: 2023-07-30T18:45:33.496 | C173: 9.371002674 | D173: 60.1300926 | E173: -149.4159257 | F173: 117.49261 | G173: 35.81 | H173: 32.243 | I173: 32.26 | J173: 3 | K173: 274 | L173: MSLV | M173: 2023-07-31T02:45:33.496Z | N173: 0.0003876851852
A174: 24114.44444 | B174: 2023-07-30T18:45:33.554 | C174: 9.429003239 | D174: 60.1300802 | E174: -149.4159068 | F174: 118.21443 | G174: 36.03 | H174: 32.178 | I174: 32.32 | J174: 3 | K174: 274 | L174: MSLV | M174: 2023-07-31T02:45:33.554Z | N174: 0.0003883564815
A175: 24172.5 | B175: 2023-07-30T18:45:33.612 | C175: 9.487003326 | D175: 60.1300676 | E175: -149.4158879 | F175: 118.880473 | G175: 36.233 | H175: 32.205 | I175: 32.26 | J175: 3 | K175: 274 | L175: MSLV | M175: 2023-07-31T02:45:33.612Z | N175: 0.0003890277778
A176: 24230.55556 | B176: 2023-07-30T18:45:33.670 | C176: 9.545003891 | D176: 60.130055 | E176: -149.415869 | F176: 119.405433 | G176: 36.393 | H176: 32.211 | I176: 32.29 | J176: 3 | K176: 274 | L176: MSLV | M176: 2023-07-31T02:45:33.670Z | N176: 0.0003896990741
A177: 24288.61111 | B177: 2023-07-30T18:45:33.728 | C177: 9.603003025 | D177: 60.1300425 | E177: -149.4158499 | F177: 119.979608 | G177: 36.568 | H177: 32.261 | I177: 32.29 | J177: 3 | K177: 274 | L177: MSLV | M177: 2023-07-31T02:45:33.728Z | N177: 0.0003903703704
A178: 24346.66667 | B178: 2023-07-30T18:45:33.786 | C178: 9.661003113 | D178: 60.1300298 | E178: -149.4158308 | F178: 120.376609 | G178: 36.689 | H178: 32.305 | I178: 32.34 | J178: 3 | K178: 274 | L178: MSLV | M178: 2023-07-31T02:45:33.786Z | N178: 0.0003910416667
A179: 24404.72222 | B179: 2023-07-30T18:45:33.844 | C179: 9.719003677 | D179: 60.1300173 | E179: -149.4158117 | F179: 121.029528 | G179: 36.888 | H179: 32.271 | I179: 32.39 | J179: 3 | K179: 274 | L179: MSLV | M179: 2023-07-31T02:45:33.844Z | N179: 0.000391712963
A180: 24462.77778 | B180: 2023-07-30T18:45:33.902 | C180: 9.777003765 | D180: 60.1300047 | E180: -149.4157928 | F180: 121.613546 | G180: 37.066 | H180: 32.237 | I180: 32.36 | J180: 3 | K180: 274 | L180: MSLV | M180: 2023-07-31T02:45:33.902Z | N180: 0.0003923842593
A181: 24520.83333 | B181: 2023-07-30T18:45:33.960 | C181: 9.835003376 | D181: 60.1299921 | E181: -149.4157738 | F181: 122.145068 | G181: 37.228 | H181: 32.276 | I181: 32.32 | J181: 3 | K181: 274 | L181: MSLV | M181: 2023-07-31T02:45:33.960Z | N181: 0.0003930555556
A182: 24578.88889 | B182: 2023-07-30T18:45:34.018 | C182: 9.89300251 | D182: 60.1299796 | E182: -149.4157548 | F182: 122.837359 | G182: 37.439 | H182: 32.233 | I182: 32.36 | J182: 3 | K182: 274 | L182: MSLV | M182: 2023-07-31T02:45:34.018Z | N182: 0.0003937268519
A183: 24636.94444 | B183: 2023-07-30T18:45:34.076 | C183: 9.951003551 | D183: 60.129967 | E183: -149.4157357 | F183: 123.404972 | G183: 37.612 | H183: 32.296 | I183: 32.32 | J183: 3 | K183: 274 | L183: MSLV | M183: 2023-07-31T02:45:34.076Z | N183: 0.0003943981481
A184: 24695 | B184: 2023-07-30T18:45:34.135 | C184: 10.01000404 | D184: 60.1299543 | E184: -149.4157168 | F184: 123.952899 | G184: 37.779 | H184: 32.272 | I184: 32.38 | J184: 3 | K184: 257 | L184: MSLV | M184: 2023-07-31T02:45:34.135Z | N184: 0.0003950810185
A185: 24750 | B185: 2023-07-30T18:45:34.190 | C185: 10.06500387 | D185: 60.1299418 | E185: -149.4156979 | F185: 124.704248 | G185: 38.008 | H185: 32.219 | I185: 32.36 | J185: 3 | K185: 257 | L185: MSLV | M185: 2023-07-31T02:45:34.190Z | N185: 0.0003957175926
A186: 24805 | B186: 2023-07-30T18:45:34.245 | C186: 10.12000322 | D186: 60.1299292 | E186: -149.4156789 | F186: 125.252175 | G186: 38.175 | H186: 32.242 | I186: 32.31 | J186: 3 | K186: 257 | L186: MSLV | M186: 2023-07-31T02:45:34.245Z | N186: 0.0003963541667
A187: 24860 | B187: 2023-07-30T18:45:34.300 | C187: 10.17500305 | D187: 60.1299166 | E187: -149.4156598 | F187: 125.941185 | G187: 38.385 | H187: 32.296 | I187: 32.33 | J187: 3 | K187: 257 | L187: MSLV | M187: 2023-07-31T02:45:34.300Z | N187: 0.0003969907407
A188: 24915 | B188: 2023-07-30T18:45:34.355 | C188: 10.23000383 | D188: 60.129904 | E188: -149.4156409 | F188: 126.663005 | G188: 38.605 | H188: 32.268 | I188: 32.39 | J188: 3 | K188: 257 | L188: MSLV | M188: 2023-07-31T02:45:34.355Z | N188: 0.0003976273148
A189: 24970 | B189: 2023-07-30T18:45:34.410 | C189: 10.28500319 | D189: 60.1298915 | E189: -149.4156218 | F189: 127.266709 | G189: 38.789 | H189: 32.304 | I189: 32.36 | J189: 3 | K189: 257 | L189: MSLV | M189: 2023-07-31T02:45:34.410Z | N189: 0.0003982638889
A190: 25025 | B190: 2023-07-30T18:45:34.465 | C190: 10.34000301 | D190: 60.1298789 | E190: -149.4156029 | F190: 127.919628 | G190: 38.988 | H190: 32.215 | I190: 32.4 | J190: 3 | K190: 257 | L190: MSLV | M190: 2023-07-31T02:45:34.465Z | N190: 0.000398900463
A191: 25080 | B191: 2023-07-30T18:45:34.520 | C191: 10.39500284 | D191: 60.1298664 | E191: -149.4155839 | F191: 128.739878 | G191: 39.238 | H191: 32.231 | I191: 32.31 | J191: 3 | K191: 257 | L191: MSLV | M191: 2023-07-31T02:45:34.520Z | N191: 0.000399537037
A192: 25135 | B192: 2023-07-30T18:45:34.575 | C192: 10.45000362 | D192: 60.1298538 | E192: -149.4155649 | F192: 129.458417 | G192: 39.457 | H192: 32.235 | I192: 32.33 | J192: 3 | K192: 257 | L192: MSLV | M192: 2023-07-31T02:45:34.575Z | N192: 0.0004001736111
A193: 25190 | B193: 2023-07-30T18:45:34.630 | C193: 10.50500298 | D193: 60.1298412 | E193: -149.4155459 | F193: 130.078526 | G193: 39.646 | H193: 32.272 | I193: 32.34 | J193: 3 | K193: 257 | L193: MSLV | M193: 2023-07-31T02:45:34.630Z | N193: 0.0004008101852
A194: 25245 | B194: 2023-07-30T18:45:34.685 | C194: 10.5600028 | D194: 60.1298288 | E194: -149.4155267 | F194: 130.81347 | G194: 39.87 | H194: 32.268 | I194: 32.37 | J194: 3 | K194: 257 | L194: MSLV | M194: 2023-07-31T02:45:34.685Z | N194: 0.0004014467593
A195: 25300 | B195: =DATE(LEFT(M195,4),MID(M195,6,2),MID(M195,9,2))+(TIME(MID(M195,12,2),MID(M195,15,2),0)-(8/24))+N195 -> 2023-07-30T18:45:34.740 | C195: 10.61500406 | D195: 60.1298161 | E195: -149.4155075 | F195: =G195*3.281 -> 131.30562 | G195: 40.02 | H195: 32.321 | I195: 32.37 | J195: 3 | K195: 257 | L195: MSLV | M195: 2023-07-31T02:45:34.740Z | N195: =(((MID(M195,18,6)/60)/60)/24) -> 0.0004020833333
A196: 25355 | B196: 2023-07-30T18:45:34.795 | C196: =(((B196*24)*60)*60)-((($B$2*24)*60)*60) -> 10.67000341 | D196: 60.1298036 | E196: -149.4154884 | F196: 131.968382 | G196: 40.222 | H196: 32.302 | I196: 32.42 | J196: 3 | K196: 257 | L196: MSLV | M196: 2023-07-31T02:45:34.795Z | N196: 0.0004027199074
A197: 25410 | B197: 2023-07-30T18:45:34.850 | C197: 10.72500372 | D197: 60.129791 | E197: -149.4154696 | F197: 132.841128 | G197: 40.488 | H197: 32.187 | I197: 32.41 | J197: 3 | K197: 257 | L197: MSLV | M197: 2023-07-31T02:45:34.850Z | N197: 0.0004033564815
A198: 25465 | B198: 2023-07-30T18:45:34.905 | C198: 10.78000307 | D198: 60.1297786 | E198: -149.4154507 | F198: 133.690907 | G198: 40.747 | H198: 32.152 | I198: 32.3 | J198: 3 | K198: 257 | L198: MSLV | M198: 2023-07-31T02:45:34.905Z | N198: 0.0004039930556
A199: 25520 | B199: 2023-07-30T18:45:34.960 | C199: 10.83500385 | D199: 60.1297661 | E199: -149.4154318 | F199: 134.603025 | G199: 41.025 | H199: 32.191 | I199: 32.27 | J199: 3 | K199: 257 | L199: MSLV | M199: 2023-07-31T02:45:34.960Z | N199: 0.0004046296296
A200: 25575 | B200: 2023-07-30T18:45:35.015 | C200: 10.8900032 | D200: 60.1297537 | E200: -149.4154128 | F200: 135.462647 | G200: 41.287 | H200: 32.179 | I200: 32.31 | J200: 3 | K200: 257 | L200: MSLV | M200: 2023-07-31T02:45:35.015Z | N200: 0.0004052662037
... 4300 more rows
